[Event "Early-Titled-Tuesday-Blitz-January-23-2024"]
[Site "Chess.com"]
[Date "2024.01.23"]
[Round "2"]
[White "Grieve72"]
[Black "FMCASTE"]
[Result "0-1"]
[WhiteElo "2722"]
[BlackElo "2490"]
[TimeControl "180+1"]
[EndTime "8:19:01 PST"]
[Termination "FMCASTE won on time"]

1. a3 {[%clk 0:03:00.4]} 1... Nf6 {[%clk 0:02:57.4]} 2. d4 {[%clk 0:02:59.7]}
2... g6 {[%clk 0:02:58.3]} 3. Nc3 {[%clk 0:02:58.9]} 3... Bg7 {[%clk 0:02:59.2]}
4. e4 {[%clk 0:02:59.6]} 4... d6 {[%clk 0:02:59.1]} 5. Bg5 {[%clk 0:02:59.5]}
5... c6 {[%clk 0:02:59]} 6. Qd2 {[%clk 0:02:58.8]} 6... Qc7 {[%clk 0:02:59.3]}
7. O-O-O {[%clk 0:02:56.7]} 7... h6 {[%clk 0:02:58.6]} 8. Bh4 {[%clk 0:02:56.7]}
8... Nbd7 {[%clk 0:02:58.8]} 9. f4 {[%clk 0:02:56.3]} 9... b5 {[%clk 0:02:58.5]}
10. e5 {[%clk 0:02:53.9]} 10... Nd5 {[%clk 0:02:43.1]} 11. Nxd5 {[%clk
0:02:50.6]} 11... cxd5 {[%clk 0:02:44]} 12. Bxb5 {[%clk 0:02:51.3]} 12... Rb8
{[%clk 0:02:36.1]} 13. Ba4 {[%clk 0:02:46.7]} 13... dxe5 {[%clk 0:02:34.5]} 14.
fxe5 {[%clk 0:02:33.7]} 14... O-O {[%clk 0:02:29.6]} 15. Bxe7 {[%clk 0:02:25.7]}
15... Nb6 {[%clk 0:02:28.5]} 16. Bd6 {[%clk 0:02:22.9]} 16... Qb7 {[%clk
0:02:28.8]} 17. Bxb8 {[%clk 0:02:03.9]} 17... Nxa4 {[%clk 0:02:28.1]} 18. Qb4
{[%clk 0:02:04.6]} 18... Qc6 {[%clk 0:02:23.2]} 19. Bd6 {[%clk 0:01:59]} 19...
Bf5 {[%clk 0:02:23.8]} 20. c3 {[%clk 0:01:51.9]} 20... Rc8 {[%clk 0:02:24.2]}
21. Nf3 {[%clk 0:01:46]} 21... h5 {[%clk 0:02:24.5]} 22. h4 {[%clk 0:01:32.9]}
22... Qa6 {[%clk 0:02:20.5]} 23. Rhe1 {[%clk 0:01:19.5]} 23... Rc6 {[%clk
0:02:19.1]} 24. Qb8+ {[%clk 0:00:58.4]} 24... Rc8 {[%clk 0:02:18.7]} 25. Qb3
{[%clk 0:00:59.3]} 25... Qa5 {[%clk 0:02:05.5]} 26. Ng5 {[%clk 0:00:55.4]} 26...
Nxc3 {[%clk 0:02:02.8]} 27. Bb4 {[%clk 0:00:23.1]} 27... Ne4+ {[%clk 0:01:23.7]}
28. Kb1 {[%clk 0:00:15.8]} 28... Nd2+ {[%clk 0:01:23.4]} 29. Ka2 {[%clk
0:00:16.4]} 29... Nxb3 {[%clk 0:01:22.7]} 30. Bxa5 {[%clk 0:00:17.2]} 30... Nxa5
{[%clk 0:01:23.6]} 31. Rc1 {[%clk 0:00:16.4]} 31... Rb8 {[%clk 0:01:18.7]} 32.
Rc7 {[%clk 0:00:14.1]} 32... Nc4 {[%clk 0:01:15]} 33. b3 {[%clk 0:00:13.4]}
33... Nd2 {[%clk 0:01:12.3]} 34. b4 {[%clk 0:00:09.4]} 34... Bh6 {[%clk
0:01:09.5]} 35. Nxf7 {[%clk 0:00:08.4]} 35... Bf8 {[%clk 0:01:06.6]} 36. Nd6
{[%clk 0:00:06.6]} 36... Be6 {[%clk 0:01:00.2]} 37. Rxa7 {[%clk 0:00:06.3]}
37... Nc4 {[%clk 0:00:53.1]} 38. Nxc4 {[%clk 0:00:05.3]} 38... dxc4 {[%clk
0:00:53.2]} 39. Kb2 {[%clk 0:00:06.2]} 39... Rc8 {[%clk 0:00:51.3]} 40. Kc3
{[%clk 0:00:06.9]} 40... Bd5 {[%clk 0:00:47.1]} 41. a4 {[%clk 0:00:07.4]} 41...
Bxg2 {[%clk 0:00:40.7]} 42. e6 {[%clk 0:00:06.4]} 42... Re8 {[%clk 0:00:35]} 43.
e7 {[%clk 0:00:06.7]} 43... Bg7 {[%clk 0:00:35]} 44. b5 {[%clk 0:00:06.8]} 44...
Kf7 {[%clk 0:00:30.7]} 45. b6 {[%clk 0:00:07.2]} 45... Bf6 {[%clk 0:00:27.8]}
46. a5 {[%clk 0:00:06.9]} 46... Bxh4 {[%clk 0:00:26.9]} 47. Re5 {[%clk
0:00:04.7]} 47... Bf6 {[%clk 0:00:23.5]} 48. Rc5 {[%clk 0:00:03.4]} 48... h4
{[%clk 0:00:23.6]} 49. b7 {[%clk 0:00:01.7]} 49... h3 {[%clk 0:00:23.1]} 50. Rb5
{[%clk 0:00:02.3]} 50... h2 {[%clk 0:00:22.7]} 51. Rb1 {[%clk 0:00:02.8]} 51...
h1=Q {[%clk 0:00:20.2]} 52. Rxh1 {[%clk 0:00:03.1]} 52... Bxh1 {[%clk
0:00:20.5]} 53. a6 {[%clk 0:00:04]} 53... Bxe7 {[%clk 0:00:16.4]} 54. Kxc4
{[%clk 0:00:04.7]} 54... g5 {[%clk 0:00:15.9]} 55. d5 {[%clk 0:00:05.2]} 55...
Bd6 {[%clk 0:00:15.3]} 56. Ra8 {[%clk 0:00:05.4]} 56... Rb8 {[%clk 0:00:14.5]}
57. Rxb8 {[%clk 0:00:02.1]} 57... Bxb8 {[%clk 0:00:14]} 58. Kc5 {[%clk 0:00:03]}
58... g4 {[%clk 0:00:12.5]} 59. Kb6 {[%clk 0:00:03.2]} 59... Bxd5 {[%clk
0:00:11.8]} 60. a7 {[%clk 0:00:03.4]} 60... Bxa7+ {[%clk 0:00:12]} 61. Kxa7
{[%clk 0:00:04.1]} 61... Bxb7 {[%clk 0:00:12.5]} 0-1

[Event "Early-Titled-Tuesday-Blitz-January-23-2024"]
[Site "Chess.com"]
[Date "2024.01.23"]
[Round "2"]
[White "FGHSMN"]
[Black "wadsy27"]
[Result "1/2-1/2"]
[WhiteElo "2993"]
[BlackElo "2634"]
[TimeControl "180+1"]
[EndTime "8:19:07 PST"]
[Termination "Game drawn by repetition"]

1. c4 {[%clk 0:03:00.9]} 1... c6 {[%clk 0:02:57.8]} 2. d4 {[%clk 0:03:00.4]}
2... d5 {[%clk 0:02:58]} 3. cxd5 {[%clk 0:03:01.3]} 3... cxd5 {[%clk 0:02:57.9]}
4. Nf3 {[%clk 0:03:02]} 4... Nc6 {[%clk 0:02:57.2]} 5. Nc3 {[%clk 0:03:02.3]}
5... Nf6 {[%clk 0:02:57.2]} 6. Bf4 {[%clk 0:03:02.9]} 6... a6 {[%clk 0:02:55.9]}
7. Ne5 {[%clk 0:03:00.1]} 7... Qb6 {[%clk 0:02:49.4]} 8. Nxc6 {[%clk 0:03:00.3]}
8... bxc6 {[%clk 0:02:50.3]} 9. f3 {[%clk 0:02:59.2]} 9... Nh5 {[%clk
0:02:48.8]} 10. Na4 {[%clk 0:02:55.5]} 10... Qb4+ {[%clk 0:02:48.4]} 11. Bd2
{[%clk 0:02:53.3]} 11... Qxd4 {[%clk 0:02:47.4]} 12. g3 {[%clk 0:02:37.6]} 12...
e6 {[%clk 0:02:31.1]} 13. Rc1 {[%clk 0:02:37]} 13... Bd7 {[%clk 0:02:30.4]} 14.
Qc2 {[%clk 0:02:35]} 14... Bb4 {[%clk 0:02:19.6]} 15. Nc5 {[%clk 0:02:23.7]}
15... Bxd2+ {[%clk 0:02:06.4]} 16. Qxd2 {[%clk 0:02:24.6]} 16... Qxd2+ {[%clk
0:02:05.7]} 17. Kxd2 {[%clk 0:02:25.5]} 17... Nf6 {[%clk 0:01:59]} 18. e3 {[%clk
0:02:16.6]} 18... a5 {[%clk 0:01:50.4]} 19. Bd3 {[%clk 0:02:13.5]} 19... Ke7
{[%clk 0:01:48.7]} 20. g4 {[%clk 0:02:11.4]} 20... Rhb8 {[%clk 0:01:44.6]} 21.
b3 {[%clk 0:02:11.3]} 21... Be8 {[%clk 0:01:34.8]} 22. h4 {[%clk 0:02:08.3]}
22... Nd7 {[%clk 0:01:31]} 23. Nxd7 {[%clk 0:01:39]} 23... Bxd7 {[%clk
0:01:30.8]} 24. Bxh7 {[%clk 0:01:17.4]} 24... g6 {[%clk 0:01:28.6]} 25. h5
{[%clk 0:01:18.1]} 25... Kf6 {[%clk 0:01:28.2]} 26. g5+ {[%clk 0:01:14.3]} 26...
Kg7 {[%clk 0:01:27.5]} 27. hxg6 {[%clk 0:01:15]} 27... fxg6 {[%clk 0:01:27.6]}
28. Rh6 {[%clk 0:01:15.7]} 28... Be8 {[%clk 0:01:21.2]} 29. Rch1 {[%clk
0:01:14.2]} 29... Bf7 {[%clk 0:01:10.8]} 30. R1h4 {[%clk 0:01:06.7]} 30... a4
{[%clk 0:01:06.8]} 31. bxa4 {[%clk 0:00:57.1]} 31... Rb2+ {[%clk 0:00:59.6]} 32.
Kc3 {[%clk 0:00:57.5]} 32... Rxa2 {[%clk 0:00:56.8]} 33. Rf4 {[%clk 0:00:46.3]}
33... Ra3+ {[%clk 0:00:48.5]} 34. Kd2 {[%clk 0:00:46.6]} 34... Be8 {[%clk
0:00:35.4]} 35. Rf6 {[%clk 0:00:44.4]} 35... R8xa4 {[%clk 0:00:28.8]} 36. Bxg6
{[%clk 0:00:40.9]} 36... Ra2+ {[%clk 0:00:24.3]} 37. Kc1 {[%clk 0:00:34.3]}
37... Rg2 {[%clk 0:00:14.9]} 38. Rxe6 {[%clk 0:00:28]} 38... Ra1+ {[%clk
0:00:07.7]} 39. Bb1 {[%clk 0:00:28]} 39... Bf7 {[%clk 0:00:07.6]} 40. Rh7+
{[%clk 0:00:22.8]} 40... Kg8 {[%clk 0:00:06.1]} 41. Re7 {[%clk 0:00:21.7]} 41...
Rxb1+ {[%clk 0:00:04.2]} 42. Kxb1 {[%clk 0:00:22.1]} 42... Kxh7 {[%clk
0:00:04.7]} 43. Rxf7+ {[%clk 0:00:22]} 43... Kg6 {[%clk 0:00:05.3]} 44. Rf6+
{[%clk 0:00:14.4]} 44... Kxg5 {[%clk 0:00:05.2]} 45. Rxc6 {[%clk 0:00:15.3]}
45... Re2 {[%clk 0:00:05.5]} 46. Rc3 {[%clk 0:00:12.7]} 46... Kh4 {[%clk
0:00:05]} 47. Kc1 {[%clk 0:00:11.6]} 47... Kg3 {[%clk 0:00:05.4]} 48. Kd1 {[%clk
0:00:11.1]} 48... Kf2 {[%clk 0:00:05]} 49. f4 {[%clk 0:00:09.6]} 49... Re1+
{[%clk 0:00:05.4]} 50. Kd2 {[%clk 0:00:09.6]} 50... Re2+ {[%clk 0:00:05.8]} 51.
Kc1 {[%clk 0:00:10.2]} 51... Re1+ {[%clk 0:00:05.7]} 52. Kc2 {[%clk 0:00:09.6]}
52... Re2+ {[%clk 0:00:05.9]} 53. Kb1 {[%clk 0:00:10]} 53... Rxe3 {[%clk
0:00:05.8]} 54. Rc2+ {[%clk 0:00:04.5]} 54... Kf3 {[%clk 0:00:05.6]} 55. f5
{[%clk 0:00:05.2]} 55... Re5 {[%clk 0:00:05.5]} 56. f6 {[%clk 0:00:05.5]} 56...
Rf5 {[%clk 0:00:05.8]} 57. Rc1 {[%clk 0:00:06]} 57... Ke4 {[%clk 0:00:05.8]} 58.
Re1+ {[%clk 0:00:06.5]} 58... Kd3 {[%clk 0:00:06]} 59. Re6 {[%clk 0:00:07]}
59... d4 {[%clk 0:00:06.3]} 60. Kc1 {[%clk 0:00:07.5]} 60... Rf1+ {[%clk
0:00:06.6]} 61. Kb2 {[%clk 0:00:08.1]} 61... Kd2 {[%clk 0:00:06.9]} 62. Rd6
{[%clk 0:00:06.9]} 62... d3 {[%clk 0:00:07.1]} 63. Re6 {[%clk 0:00:07.1]} 63...
Kd1 {[%clk 0:00:07]} 64. Rd6 {[%clk 0:00:07.4]} 64... d2 {[%clk 0:00:07.4]} 65.
Re6 {[%clk 0:00:08]} 65... Rf3 {[%clk 0:00:07.7]} 66. Rd6 {[%clk 0:00:02.9]}
66... Ke1 {[%clk 0:00:07.7]} 67. Re6+ {[%clk 0:00:03.3]} 67... Kf2 {[%clk
0:00:07.6]} 68. Rd6 {[%clk 0:00:03.6]} 68... Ke2 {[%clk 0:00:07.9]} 69. Re6+
{[%clk 0:00:04.1]} 69... Re3 {[%clk 0:00:07.6]} 70. Rxe3+ {[%clk 0:00:04.4]}
70... Kxe3 {[%clk 0:00:08.5]} 71. f7 {[%clk 0:00:05]} 71... d1=Q {[%clk
0:00:08.8]} 72. f8=Q {[%clk 0:00:05.5]} 72... Qd4+ {[%clk 0:00:09.4]} 73. Kb1
{[%clk 0:00:05.8]} 73... Qd3+ {[%clk 0:00:09.8]} 74. Kb2 {[%clk 0:00:06.5]}
74... Qd4+ {[%clk 0:00:10.2]} 75. Kb1 {[%clk 0:00:07.2]} 75... Qd3+ {[%clk
0:00:10.6]} 76. Kb2 {[%clk 0:00:07.9]} 76... Qd4+ {[%clk 0:00:11]} 1/2-1/2

[Event "Early-Titled-Tuesday-Blitz-January-23-2024"]
[Site "Chess.com"]
[Date "2024.01.23"]
[Round "2"]
[White "FM_VS99"]
[Black "Roosters19"]
[Result "1-0"]
[WhiteElo "2539"]
[BlackElo "2327"]
[TimeControl "180+1"]
[EndTime "8:19:07 PST"]
[Termination "FM_VS99 won by resignation"]

1. Nf3 {[%clk 0:03:00.9]} 1... c5 {[%clk 0:02:59.1]} 2. g3 {[%clk 0:03:00.3]}
2... Nc6 {[%clk 0:02:58.5]} 3. c4 {[%clk 0:02:57.8]} 3... g6 {[%clk 0:02:57.8]}
4. Bg2 {[%clk 0:02:58]} 4... Bg7 {[%clk 0:02:58]} 5. O-O {[%clk 0:02:58.4]} 5...
Nf6 {[%clk 0:02:58.1]} 6. Nc3 {[%clk 0:02:58.7]} 6... O-O {[%clk 0:02:58]} 7. d4
{[%clk 0:02:59.4]} 7... cxd4 {[%clk 0:02:58.2]} 8. Nxd4 {[%clk 0:03:00.3]} 8...
d6 {[%clk 0:02:58.7]} 9. Nxc6 {[%clk 0:02:59.8]} 9... bxc6 {[%clk 0:02:58.9]}
10. Bxc6 {[%clk 0:03:00]} 10... Bh3 {[%clk 0:02:59.4]} 11. Bxa8 {[%clk 0:02:12]}
11... Qxa8 {[%clk 0:03:00.3]} 12. f3 {[%clk 0:02:11.4]} 12... Bxf1 {[%clk
0:02:56.5]} 13. Kxf1 {[%clk 0:02:11.3]} 13... Rc8 {[%clk 0:02:52.3]} 14. Be3
{[%clk 0:01:52]} 14... Rxc4 {[%clk 0:02:50.1]} 15. Qb3 {[%clk 0:01:51]} 15...
Rc8 {[%clk 0:02:36.2]} 16. Rc1 {[%clk 0:01:48.8]} 16... h5 {[%clk 0:02:28.9]}
17. Nb5 {[%clk 0:01:25.9]} 17... Rxc1+ {[%clk 0:02:08.7]} 18. Bxc1 {[%clk
0:01:26.8]} 18... a6 {[%clk 0:02:03.9]} 19. Nc3 {[%clk 0:01:23.5]} 19... h4
{[%clk 0:01:58.4]} 20. gxh4 {[%clk 0:01:12.9]} 20... Qc8 {[%clk 0:01:56.3]} 21.
Kg2 {[%clk 0:01:12.2]} 21... Nh5 {[%clk 0:01:52.9]} 22. Bg5 {[%clk 0:01:06.7]}
22... e6 {[%clk 0:01:40.9]} 23. Ne4 {[%clk 0:00:46.9]} 23... d5 {[%clk
0:01:38.3]} 24. Ng3 {[%clk 0:00:44.4]} 24... Nf6 {[%clk 0:01:31.4]} 25. Qb6
{[%clk 0:00:24.8]} 25... Kh7 {[%clk 0:01:23.5]} 26. Qa7 {[%clk 0:00:18.2]} 26...
Kg8 {[%clk 0:01:22.9]} 27. b4 {[%clk 0:00:18.1]} 27... Qc4 {[%clk 0:01:19.7]}
28. a4 {[%clk 0:00:14.9]} 28... Nh5 {[%clk 0:01:06.5]} 29. Qc5 {[%clk
0:00:11.9]} 29... Qa2 {[%clk 0:00:47.4]} 30. Qf2 {[%clk 0:00:08.7]} 30... Qxa4
{[%clk 0:00:43.2]} 31. Nxh5 {[%clk 0:00:08.8]} 31... gxh5 {[%clk 0:00:43.4]} 32.
Qg3 {[%clk 0:00:09.1]} 32... Kh7 {[%clk 0:00:41.5]} 33. Qc7 {[%clk 0:00:06.7]}
33... Kg6 {[%clk 0:00:36.4]} 34. Be7 {[%clk 0:00:06.9]} 34... Qb5 {[%clk
0:00:33.6]} 35. Qg3+ {[%clk 0:00:06.9]} 35... Kh7 {[%clk 0:00:32.9]} 36. Kf1
{[%clk 0:00:07.3]} 36... Qc4 {[%clk 0:00:28.6]} 37. Qg5 {[%clk 0:00:07.4]} 37...
f6 {[%clk 0:00:17.5]} 38. Qxh5+ {[%clk 0:00:07.5]} 38... Kg8 {[%clk 0:00:18.2]}
39. Qe8+ {[%clk 0:00:05.6]} 39... Kh7 {[%clk 0:00:18.5]} 40. Qh5+ {[%clk
0:00:06.2]} 40... Kg8 {[%clk 0:00:18.7]} 41. Qg6 {[%clk 0:00:06.7]} 41... Qc1+
{[%clk 0:00:16.5]} 42. Kf2 {[%clk 0:00:07.1]} 42... Qh6 {[%clk 0:00:16.6]} 43.
Qxh6 {[%clk 0:00:06.4]} 43... Bxh6 {[%clk 0:00:17.5]} 44. Bxf6 {[%clk
0:00:06.9]} 44... Kf7 {[%clk 0:00:18.1]} 45. Bd4 {[%clk 0:00:07.2]} 45... Bf8
{[%clk 0:00:18.5]} 46. Bc3 {[%clk 0:00:05.6]} 46... Kg6 {[%clk 0:00:17]} 47. Kg3
{[%clk 0:00:05.3]} 47... Bd6+ {[%clk 0:00:17]} 48. Kg4 {[%clk 0:00:05.3]} 48...
Bxh2 {[%clk 0:00:16.5]} 49. h5+ {[%clk 0:00:05.8]} 49... Kh7 {[%clk 0:00:16.6]}
50. f4 {[%clk 0:00:04.2]} 50... Bg1 {[%clk 0:00:16.3]} 51. Kg5 {[%clk
0:00:04.7]} 51... Be3 {[%clk 0:00:14.6]} 52. Be5 {[%clk 0:00:04.1]} 52... d4
{[%clk 0:00:14.6]} 53. Kf6 {[%clk 0:00:04.3]} 53... Bd2 {[%clk 0:00:12.9]} 54.
Kxe6 {[%clk 0:00:04.5]} 54... Bxb4 {[%clk 0:00:13.6]} 55. Bxd4 {[%clk 0:00:05]}
55... Bd2 {[%clk 0:00:13.5]} 56. f5 {[%clk 0:00:05.4]} 56... Bh6 {[%clk
0:00:10]} 57. f6 {[%clk 0:00:05.7]} 57... a5 {[%clk 0:00:10.9]} 58. f7 {[%clk
0:00:05.9]} 58... Bf8 {[%clk 0:00:09.8]} 59. Kd7 {[%clk 0:00:05.6]} 59... Kh6
{[%clk 0:00:09]} 60. Ke8 {[%clk 0:00:06]} 60... Bb4 {[%clk 0:00:08.8]} 61. f8=Q+
{[%clk 0:00:06.4]} 61... Bxf8 {[%clk 0:00:09.5]} 62. Kxf8 {[%clk 0:00:07.3]}
62... Kxh5 {[%clk 0:00:10.4]} 63. Ke7 {[%clk 0:00:07.6]} 63... Kg4 {[%clk
0:00:10.4]} 64. e4 {[%clk 0:00:07]} 64... Kf4 {[%clk 0:00:10.5]} 65. e5 {[%clk
0:00:07.4]} 65... a4 {[%clk 0:00:11.3]} 66. Ba1 {[%clk 0:00:07.7]} 66... a3
{[%clk 0:00:12]} 67. e6 {[%clk 0:00:08.3]} 67... Kf5 {[%clk 0:00:11.8]} 68. Kd7
{[%clk 0:00:08.8]} 68... a2 {[%clk 0:00:12.6]} 69. e7 {[%clk 0:00:09.1]} 1-0

[Event "Early-Titled-Tuesday-Blitz-January-23-2024"]
[Site "Chess.com"]
[Date "2024.01.23"]
[Round "2"]
[White "Chesstiger64"]
[Black "Aash20"]
[Result "1/2-1/2"]
[WhiteElo "2250"]
[BlackElo "2487"]
[TimeControl "180+1"]
[EndTime "8:19:07 PST"]
[Termination "Game drawn by stalemate"]

1. d4 {[%clk 0:02:47.7]} 1... d5 {[%clk 0:02:59.1]} 2. Nf3 {[%clk 0:02:29.9]}
2... Nf6 {[%clk 0:02:57.7]} 3. e3 {[%clk 0:02:30.2]} 3... c5 {[%clk 0:02:56.9]}
4. c3 {[%clk 0:02:30.1]} 4... Nc6 {[%clk 0:02:56.7]} 5. Bd3 {[%clk 0:02:29.3]}
5... Qb6 {[%clk 0:02:55.3]} 6. O-O {[%clk 0:02:28]} 6... Bg4 {[%clk 0:02:54.8]}
7. dxc5 {[%clk 0:02:27.3]} 7... Qxc5 {[%clk 0:02:54.2]} 8. b4 {[%clk 0:02:27.9]}
8... Qb6 {[%clk 0:02:53.2]} 9. a3 {[%clk 0:02:28]} 9... e6 {[%clk 0:02:52.5]}
10. Nbd2 {[%clk 0:02:27.9]} 10... Bd6 {[%clk 0:02:50.6]} 11. Bb2 {[%clk
0:02:28.2]} 11... O-O {[%clk 0:02:48.7]} 12. h3 {[%clk 0:02:28.5]} 12... Bh5
{[%clk 0:02:48]} 13. c4 {[%clk 0:02:28.8]} 13... Be7 {[%clk 0:02:41.8]} 14. c5
{[%clk 0:02:27.9]} 14... Qc7 {[%clk 0:02:41.1]} 15. Be2 {[%clk 0:02:27.9]} 15...
Rad8 {[%clk 0:02:38.9]} 16. Nb3 {[%clk 0:02:27.8]} 16... Ne4 {[%clk 0:02:35.1]}
17. Nfd4 {[%clk 0:02:23.9]} 17... Bxe2 {[%clk 0:02:34.2]} 18. Qxe2 {[%clk
0:02:24.3]} 18... Nxd4 {[%clk 0:02:32.9]} 19. Bxd4 {[%clk 0:02:23.3]} 19... Bf6
{[%clk 0:02:31.4]} 20. Bxf6 {[%clk 0:02:22.4]} 20... Nxf6 {[%clk 0:02:30.9]} 21.
Rfd1 {[%clk 0:02:17.9]} 21... b6 {[%clk 0:02:30.3]} 22. Rac1 {[%clk 0:02:16.7]}
22... Ne4 {[%clk 0:02:28.5]} 23. Nd4 {[%clk 0:02:10.5]} 23... bxc5 {[%clk
0:02:28.3]} 24. bxc5 {[%clk 0:02:10.4]} 24... Qa5 {[%clk 0:02:25.1]} 25. Nc6
{[%clk 0:02:06]} 25... Qxa3 {[%clk 0:02:23.2]} 26. Nxd8 {[%clk 0:02:06]} 26...
Rxd8 {[%clk 0:02:23]} 27. c6 {[%clk 0:02:02.4]} 27... Rc8 {[%clk 0:02:22.3]} 28.
Qb5 {[%clk 0:02:00.4]} 28... Qd6 {[%clk 0:02:04.2]} 29. Qb7 {[%clk 0:01:55.8]}
29... Qc7 {[%clk 0:02:03.3]} 30. Qxc7 {[%clk 0:01:42.9]} 30... Rxc7 {[%clk
0:02:03.1]} 31. Rb1 {[%clk 0:01:43.5]} 31... g6 {[%clk 0:02:01.6]} 32. Rdc1
{[%clk 0:01:39.5]} 32... Nd6 {[%clk 0:01:56.3]} 33. Rb8+ {[%clk 0:01:34.4]}
33... Kg7 {[%clk 0:01:54.8]} 34. f3 {[%clk 0:01:33]} 34... Nc4 {[%clk
0:01:50.7]} 35. Rb7 {[%clk 0:01:24.2]} 35... Rxc6 {[%clk 0:01:48.6]} 36. Rxa7
{[%clk 0:01:24.5]} 36... Rb6 {[%clk 0:01:44.8]} 37. e4 {[%clk 0:01:20]} 37...
Ne3 {[%clk 0:01:40.6]} 38. exd5 {[%clk 0:01:17.3]} 38... Nxd5 {[%clk 0:01:38.2]}
39. Ra2 {[%clk 0:01:11.8]} 39... h5 {[%clk 0:01:31.1]} 40. h4 {[%clk 0:01:02.4]}
40... Nf4 {[%clk 0:01:28.6]} 41. g3 {[%clk 0:01:00.4]} 41... Nd3 {[%clk
0:01:26]} 42. Rd1 {[%clk 0:00:55]} 42... Ne5 {[%clk 0:01:24.6]} 43. Kg2 {[%clk
0:00:53.3]} 43... Rb3 {[%clk 0:01:24.1]} 44. Rf2 {[%clk 0:00:51.8]} 44... Nc4
{[%clk 0:01:17.7]} 45. Re2 {[%clk 0:00:48.1]} 45... Ne3+ {[%clk 0:01:16.9]} 46.
Rxe3 {[%clk 0:00:46.3]} 46... Rxe3 {[%clk 0:01:17.8]} 47. Rd2 {[%clk 0:00:46.7]}
47... Rb3 {[%clk 0:01:17.6]} 48. Rc2 {[%clk 0:00:46.9]} 48... Kf6 {[%clk
0:01:15.2]} 49. Rd2 {[%clk 0:00:47.1]} 49... e5 {[%clk 0:01:13.5]} 50. Rc2
{[%clk 0:00:47.6]} 50... Rb4 {[%clk 0:01:12.6]} 51. Rd2 {[%clk 0:00:47.8]} 51...
e4 {[%clk 0:01:12.1]} 52. fxe4 {[%clk 0:00:47.5]} 52... Rxe4 {[%clk 0:01:11.9]}
53. Rf2+ {[%clk 0:00:48.3]} 53... Kg7 {[%clk 0:01:11.2]} 54. Rc2 {[%clk
0:00:48.8]} 54... f5 {[%clk 0:01:11.5]} 55. Rb2 {[%clk 0:00:49]} 55... f4 {[%clk
0:01:11.4]} 56. gxf4 {[%clk 0:00:48]} 56... Rxf4 {[%clk 0:01:11.1]} 57. Kg3
{[%clk 0:00:48.6]} 57... Rg4+ {[%clk 0:01:10.7]} 58. Kh3 {[%clk 0:00:48.2]}
58... Ra4 {[%clk 0:01:11.6]} 59. Rb3 {[%clk 0:00:48.3]} 59... Kf6 {[%clk
0:01:11.3]} 60. Rf3+ {[%clk 0:00:48]} 60... Ke5 {[%clk 0:01:11.4]} 61. Rg3
{[%clk 0:00:47.1]} 61... Kf5 {[%clk 0:01:10.4]} 62. Rf3+ {[%clk 0:00:47.2]}
62... Rf4 {[%clk 0:01:10.4]} 63. Ra3 {[%clk 0:00:45.5]} 63... Rb4 {[%clk
0:01:04.4]} 64. Rc3 {[%clk 0:00:45.4]} 64... Re4 {[%clk 0:01:02.7]} 65. Rf3+
{[%clk 0:00:44.4]} 65... Ke5 {[%clk 0:01:02.3]} 66. Rg3 {[%clk 0:00:43.3]} 66...
Kf5 {[%clk 0:00:59.5]} 67. Rf3+ {[%clk 0:00:43.4]} 67... Rf4 {[%clk 0:00:59.8]}
68. Rb3 {[%clk 0:00:43.2]} 68... Rg4 {[%clk 0:01:00.1]} 69. Rb5+ {[%clk
0:00:41.8]} 69... Ke4 {[%clk 0:00:58.6]} 70. Rb4+ {[%clk 0:00:41.7]} 70... Kf3
{[%clk 0:00:58.4]} 71. Rb3+ {[%clk 0:00:41.8]} 71... Kf4 {[%clk 0:00:57.7]} 72.
Rb4+ {[%clk 0:00:42]} 72... Kf5 {[%clk 0:00:58.6]} 73. Rb5+ {[%clk 0:00:42.3]}
73... Kf6 {[%clk 0:00:58.4]} 74. Rb6+ {[%clk 0:00:42.6]} 74... Kg7 {[%clk
0:00:58.1]} 75. Rb7+ {[%clk 0:00:43]} 75... Kh6 {[%clk 0:00:57.8]} 76. Rb3
{[%clk 0:00:43.4]} 76... Ra4 {[%clk 0:00:57.1]} 77. Rc3 {[%clk 0:00:43.5]} 77...
Ra1 {[%clk 0:00:57.6]} 78. Rb3 {[%clk 0:00:43.4]} 78... Rh1+ {[%clk 0:00:57.7]}
79. Kg3 {[%clk 0:00:43.5]} 79... Kg7 {[%clk 0:00:58]} 80. Rb7+ {[%clk 0:00:43]}
80... Kf6 {[%clk 0:00:57.7]} 81. Rb6+ {[%clk 0:00:43.3]} 81... Kf5 {[%clk
0:00:58.1]} 82. Rb5+ {[%clk 0:00:43.5]} 82... Ke4 {[%clk 0:00:56.7]} 83. Rb4+
{[%clk 0:00:43.7]} 83... Kd3 {[%clk 0:00:53.8]} 84. Kg2 {[%clk 0:00:43.9]} 84...
Re1 {[%clk 0:00:48.2]} 85. Rb6 {[%clk 0:00:43.4]} 85... Re4 {[%clk 0:00:47.4]}
86. Rxg6 {[%clk 0:00:41.8]} 86... Rxh4 {[%clk 0:00:47.1]} 87. Re6 {[%clk
0:00:41.7]} 87... Kd4 {[%clk 0:00:46]} 88. Re8 {[%clk 0:00:41.3]} 88... Re4
{[%clk 0:00:45.4]} 89. Rxe4+ {[%clk 0:00:40.2]} 89... Kxe4 {[%clk 0:00:45.7]}
90. Kg3 {[%clk 0:00:40.9]} 90... Kf5 {[%clk 0:00:46.6]} 91. Kh4 {[%clk
0:00:41.6]} 91... Kg6 {[%clk 0:00:47.5]} 92. Kh3 {[%clk 0:00:42.3]} 92... Kg5
{[%clk 0:00:48.4]} 93. Kg3 {[%clk 0:00:42.8]} 93... h4+ {[%clk 0:00:49.3]} 94.
Kh2 {[%clk 0:00:43.4]} 94... Kg4 {[%clk 0:00:49.9]} 95. Kg2 {[%clk 0:00:44.1]}
95... h3+ {[%clk 0:00:50.8]} 96. Kh2 {[%clk 0:00:44.6]} 96... Kh4 {[%clk
0:00:50.9]} 97. Kg1 {[%clk 0:00:44.5]} 97... Kg3 {[%clk 0:00:51.8]} 98. Kh1
{[%clk 0:00:45]} 98... h2 {[%clk 0:00:52.4]} 1/2-1/2